Cogmind - Beta 9.2 @@@ ROGUE MODE // 2019.11.25 @ 15:09:39 Player: Fleshy Vegetable Bird Result: Destroyed by Y-45 Defender with Heavy Assault Rifle Performance ------------- Evolutions (1) 500 Regions Visited (2) 400 Robots Destroyed (31) 155 Value Destroyed (544) 544 Prototype IDs (2) 40 Alien Tech Used (0) 0 Bonus (-36) -36 TOTAL SCORE: 1603 Bonus ------- Friendly Fire -36 Cogmind --------- Core Integrity 0/400 Matter 187/300 Energy 248/250 System Corruption 0% Temperature Cool (9) Movement Rolling (120) Ox2 Location -9/Materials Parts ------- > --- POWER (1) -------- Ion Engine > --- PROPULSION (2) --- Compact Wheel Compact Wheel > --- UTILITY (4) ------ High-capacity Storage Unit High-capacity Storage Unit Armor Integrity Analyzer > --- WEAPON (2) ------- EM Shotgun Small Laser > --- INVENTORY (20) --- Wheel Wheel Armored Wheel Large Storage Unit Large Storage Unit Improved Signal Interpreter Light Armor Plating Hacking Suite EM Shotgun Small Laser Shotgun Shotgun Shotgun Shotgun Grenade Launcher Peak State ------------ > --- POWER ------------ (None) > --- PROPULSION ------- Compact Wheel Compact Wheel > --- UTILITY ---------- Medium Storage Unit High-capacity Storage Unit High-capacity Storage Unit Armor Integrity Analyzer > --- WEAPON ----------- EM Shotgun Small Laser > --- INVENTORY -------- Wheel Wheel Armored Wheel Large Storage Unit Large Storage Unit Improved Signal Interpreter Light Armor Plating Hacking Suite EM Shotgun Small Laser Shotgun Shotgun Shotgun Shotgun Grenade Launcher [Rating: 12] Favorites ----------- Power Light Ion Engine Engine Light Ion Engine Propulsion Wheel Wheel Wheel Utility High-capacity Storage Unit Storage High-capacity Storage Unit Processor Armor Integrity Analyzer Weapon Light Assault Rifle Energy Gun Small Laser Ballistic Gun Light Assault Rifle Launcher Grenade Launcher Special Weapon Mining Laser Build | -11 -10 -9 ------- Run | Scr Mat Mat Slots Evolved 2 | . . 2 Power . | . . . Propulsion . | . . . Utility 2 | . . 2 Weapon . | . . . Parts Attached 31 | 6 13 12 Power 4 | 1 2 1 Engine 4 | 1 2 1 Core . | . . . Reactor . | . . . Propulsion 7 | 2 2 3 Treads . | . . . Leg . | . . . Wheel 7 | 2 2 3 Hover . | . . . Flight . | . . . Utility 8 | 2 4 2 Device . | . . . Storage 7 | 2 4 1 Processor 1 | . . 1 Hackware . | . . . Protection . | . . . Artifact . | . . . Weapon 12 | 1 5 6 Energy Gun 4 | 1 . 3 Energy Cannon . | . . . Ballistic Gun 3 | . 3 . Ballistic Cannon . | . . . Launcher 1 | . . 1 Special Weapon 4 | . 2 2 Impact Weapon . | . . . Slashing Weapon . | . . . Piercing Weapon . | . . . Special Melee Weapon . | . . . Unidentified Prototypes . | . . . Parts Lost 12 | . 4 8 Power 1 | . 1 . Propulsion 5 | . 2 3 Utility . | . . . Weapon 6 | . 1 5 Highest Loss Streak 5 | . 4 5 Average Slot Usage (%) 76 | . 90 64 Engine 3 | . 6 1 Wheel 24 | . 28 20 Storage 24 | . 28 22 Processor 1 | . . 2 Energy Gun 3 | . 1 5 Ballistic Gun 12 | . 22 3 Launcher 3 | . . 6 Special Weapon 3 | . 3 3 Naked Turns . | . . . Heaviest Build 73 | 13 66 73 Greatest Support 32 | 20 20 32 Greatest Overweight (x) 22 | 1 3 22 Average Overweight (x) 1 | . . 2 Largest Inventory Capacity 24 | 8 20 24 Average Capacity 16 | 6 14 20 Most Carried 16 | 6 9 16 Average Carried 6 | 4 4 8 Final Capacity 20 | 8 20 20 Final Carried 15 | 6 9 15 Class Distribution -------------------- 50% | Hauler-Mutant 41% | Mutant 8% | Scavenger-Mutant Dominant Class ---------------- Mutant | -10/Materials Hauler-Mutant | -9/Materials Resources | -11 -10 -9 ----------- Run | Scr Mat Mat Matter Collected 684 | 260 240 184 Remotely . | . . . Salvage Created 958 | 121 343 494 Parts 70 | 9 28 33 Haulers Intercepted 3 | . 1 2 Recyclers Shooed 5 | . 2 3 Parts Field Recycled . | . . . Retrieved Matter . | . . . Parts Self-Destructed . | . . . Prevented . | . . . Kills | -11 -10 -9 ------- Run | Scr Mat Mat Combat Hostiles Destroyed 14 | . 8 6 Guns 11 | . 8 3 AOE 3 | . . 3 Classes Destroyed 9 | 2 5 2 Builder 3 | . . 3 Tunneler 3 | 3 . . Hauler 3 | . 1 2 Recycler 5 | 1 1 3 Operator 1 | . 1 . Watcher 2 | . 1 1 Swarmer 6 | . 6 . Grunt 3 | . 2 1 Sentry 5 | . . 5 Best Kill Streak 5 | 2 3 5 Combat Bots Only 3 | . 3 1 Max Kills in Single Turn 2 | 1 1 2 Gunslinging . | . . . Exploded 1 | . . 1 Melee . | . . . Uniques/NPCs Destroyed . | . . . Combat | -11 -10 -9 -------- Run | Scr Mat Mat Damage Taken 1540 | . 618 922 Core 542 | . 137 405 Absorbed by Shields . | . . . Core Remaining (%) 72 | 100 45 . Volleys Fired 132 | 27 54 51 Largest 2 | 1 2 2 Hottest 100 | 50 100 100 Shots Fired 197 | 27 96 74 Gun 156 | 27 85 44 Cannon . | . . . Launcher 20 | . . 20 Special 21 | . 11 10 Kinetic 98 | . 85 13 Thermal 70 | 27 11 32 Explosive 20 | . . 20 Electromagnetic 9 | . . 9 Robot Hit Streak 12 | 7 8 12 Robot Miss Streak 3 | 2 3 3 Penetration Max . | . . . Secondary Targets . | . . . Shots Hit Robots 127 | 19 48 60 Core Hits 71 | 5 25 41 Critical Hits 1 | . . 1 Critical Kills . | . . . Critical Parts Destroyed 1 | . . 1 Melee Attacks . | . . . Impact . | . . . Slashing . | . . . Piercing . | . . . Sneak Attacks . | . . . Combat Hostiles . | . . . Follow-up Attacks . | . . . Damage Inflicted 2032 | 229 439 1364 Guns 1036 | 229 412 395 Cannons . | . . . Explosions 875 | . . 875 Melee . | . . . Ramming 3 | . 3 . Kinetic 503 | . 412 91 Thermal 712 | 229 24 459 Explosive 619 | . . 619 Electromagnetic 195 | . . 195 Impact . | . . . Slashing . | . . . Piercing . | . . . Highest Corruption 14 | . 14 . Average Corruption 14 | . 14 . Corruption Purged . | . . . Effects 48 | . 48 . Message Errors 7 | . 7 . Matter Fused 5 | . 5 . Heat Flow Errors 1 | . 1 . Energy Discharges 3 | . 3 . Parts Rejected 2 | . 2 . Data Loss (minor) 5 | . 5 . Misfires 2 | . 2 . Alerts 1 | . 1 . Misdirections 7 | . 7 . Targeting Errors 12 | . 12 . Weapon Failures 3 | . 3 . Overload Shots . | . . . Overflow Damage 81 | . . 81 Projectiles . | . . . Explosions 81 | . . 81 Melee . | . . . Knockbacks . | . . . Impact . | . . . Kinetic . | . . . Secondary . | . . . Self-Inflicted Damage 69 | . 1 68 Shots 2 | . . 2 Rammed 1 | . 1 . Targets Rammed 1 | . 1 . Kicked . | . . . Crushed . | . . . Highest Temperature 164 | 80 164 30 Average Temperature 28 | 38 32 12 Received Heat Transfer 297 | . 90 207 Siege Activations . | . . . Robots Corrupted . | . . . Combat Hostiles . | . . . Parts Fried . | . . . Impact Corruptions . | . . . Robots Melted . | . . . Combat Hostiles . | . . . Parts Melted 1 | 1 . . Heat Transferred 1440 | 666 50 724 Parts Sabotaged . | . . . Parts Stolen . | . . . Parts Stripped . | . . . Power Chain Reactions 1 | . . 1 Missiles Intercepted . | . . . Alert | -11 -10 -9 ------- Run | Scr Mat Mat Peak Influence 263 | 20 263 157 Average Influence 90 | 8 116 79 Maximum Alert Level 1 | . 1 . Low Security (%) 90 | 100 78 100 Level 1 9 | . 21 . Level 2 . | . . . Level 3 . | . . . Level 4 . | . . . Level 5 . | . . . High Security . | . . . Max Security . | . . . Squads Dispatched 3 | . 1 2 Investigation . | . . . Extermination . | . . . Reinforcement 3 | . 1 2 Assault . | . . . Garrison . | . . . Intercept . | . . . Construction Impeded 1 | . . 1 Haulers Reinforced . | . . . Stealth | -11 -10 -9 --------- Run | Scr Mat Mat Distress Signals 4 | . . 4 Communications Jammed . | . . . Distress Signals . | . . . Times Spotted 38 | . 20 18 Peak Tracking Total 4 | . 4 3 Tactical Retreats 3 | . 1 2 Traps | -11 -10 -9 ------- Run | Scr Mat Mat Traps Triggered 1 | . . 1 Indirectly . | . . . Trap Hack Attempts . | . . . Triggered . | . . . Disarmed . | . . . Reprogrammed . | . . . Reused . | . . . Traps Extracted . | . . . Installed . | . . . Triggered . | . . . Machines | -11 -10 -9 ---------- Run | Scr Mat Mat Machines Disabled 4 | . . 4 Max in Single Turn 3 | . . 3 Machines Sabotaged . | . . . Garrisons Compromised . | . . . Overloaded Fab Kills . | . . . Fab Network Shutdowns . | . . . Hacking | -11 -10 -9 --------- Run | Scr Mat Mat Machines Accessed 11 | . 7 4 Terminals 10 | . 7 3 Fabricators . | . . . Repair Stations . | . . . Recycling Units . | . . . Scanalyzers 1 | . . 1 Garrison Access . | . . . Total Hacks 45 | . 31 14 Successful 31 | . 21 10 Failed 14 | . 10 4 Catastrophic 1 | . 1 . Database Lockouts . | . . . Manual 35 | . 24 11 Terminals 42 | . 31 11 Fabricators . | . . . Repair Stations . | . . . Recycling Units . | . . . Scanalyzers 3 | . . 3 Garrison Access . | . . . Terminal Hacks 9 | . 7 2 Part Schematic 1 | . 1 . Prototype ID Bank 1 | . 1 . Emergency Access Points 1 | . 1 . Terminal Index 2 | . 1 1 Recall Reinforcements 1 | . . 1 Zone Layout 3 | . 3 . Fabricator Hacks . | . . . Repair Station Hacks . | . . . Recycling Unit Hacks . | . . . Scanalyzer 3 | . . 3 Insert Component 1 | . . 1 Analyze 2 | . . 2 Garrison Access Hacks . | . . . Unauthorized Hacks 47 | . 34 13 Terminals 19 | . 14 5 Track 6 | . 4 2 Assimilate 3 | . 3 . Botnet 8 | . 6 2 Operators 2 | . 1 1 Fabricators . | . . . Repair Stations . | . . . Recycling Units . | . . . Scanalyzers . | . . . Garrison Access . | . . . Data Cores Recovered . | . . . Used . | . . . Hacking Detections 10 | . 7 3 Full Trace Events . | . . . Feedback Events . | . . . Feedback Blocked . | . . . Robot Schematics Acquired . | . . . Robots Built . | . . . Matter . | . . . Time . | . . . Total Robot Build Rating . | . . . Part Schematics Acquired 2 | . 1 1 Parts Built . | . . . Matter . | . . . Time . | . . . Total Part Build Rating . | . . . Parts Repaired . | . . . Time . | . . . Parts Recycled . | . . . Recycled Matter . | . . . Retrieved Matter . | . . . Retrieved Components . | . . . Parts Scanalyzed 1 | . . 1 Part Schematics Acquired 1 | . . 1 Parts Damaged . | . . . Bothacking | -11 -10 -9 ------------ Run | Scr Mat Mat Used RIF Installer . | . . . Robots Hacked . | . . . Non-combat . | . . . Combat . | . . . Robot Hacks Applied . | . . . Relay Couplers Released . | . . . Robots Rewired . | . . . Allies Hacked . | . . . Hacks Repelled . | . . . Allies | -11 -10 -9 -------- Run | Scr Mat Mat Total Allies 3 | . 3 . Largest Group 2 | . 2 2 Highest-Rated Group 20 | . 20 20 Highest-Rated Ally 10 | . 10 10 Total Orders 6 | . . 6 GOTO 4 | . . 4 FOLLOW 2 | . . 2 Ally Attacks . | . . . Total Damage . | . . . Kills . | . . . Allies Corrupted . | . . . Allies Melted . | . . . Intel | -11 -10 -9 ------- Run | Scr Mat Mat Robot Analysis Total . | . . . Derelict Logs Recovered . | . . . Drone Launches . | . . . Drone Recoveries . | . . . Exploration | -11 -10 -9 ------------- Run | Scr Mat Mat Turns Passed 1580 | 129 699 752 Spaces Moved 1052 | 68 559 425 Core 15 | 14 . 1 Treads . | . . . Legs . | . . . Wheels 1037 | 54 559 424 Hover . | . . . Flight . | . . . Fastest Speed 50 | 50 80 110 Average Speed 99 | 79 88 116 Slowest Speed 1150 | 100 110 1150 Overloaded Moves . | . . . Propulsion Burnouts . | . . . Robots Hopped . | . . . Cave-ins Triggered 1 | . 1 . Exploration Rate (%) 40 | 4 76 42 Regions Visited 2 Branch Regions . Pre-discovered Areas . | . . . Known Exits Taken . | . . . Unknown Exits Taken 2 | 1 1 . Scrap Searched . | . . . Spaces Dug 9 | . 9 . Terrain Destroyed 78 | . 9 69 Melee . | . . . Projectile 9 | . 9 . AOE 69 | . . 69 Actions | -11 -10 -9 --------- Run | Scr Mat Mat Total 1369 | 116 660 593 Wait 107 | . 21 86 Move 1050 | 67 558 425 Hop . | . . . Pick Up 43 | 14 11 18 Fast Attach . | . . . Attach 24 | 6 6 12 Detach . | . . . Swap 7 | . 7 . Drop 5 | 2 2 1 Fire 132 | 27 54 51 Melee . | . . . Ram 1 | . 1 . Kick . | . . . Crush . | . . . Escape Stasis . | . . . Rewire . | . . . Trap . | . . . Miscellaneous . | . . . Route ------- -11/Scrapyard -10/Materials (discovered 3 exits: *Mat x2 / [*Min]) -9/Materials (discovered 3 exits: [*Mat] / [*Min x2]) History --------- Turn | Location | Event 58 | -11/Scrapyard | Discovered new exit (range 16) 130 | -11/Scrapyard | Entered Materials 168 | -10/Materials | Discovered new exit (range 6) 184 | -10/Materials | Crushed by falling debris 184 | -10/Materials | System corruption reached 10% 215 | -10/Materials | Lost 4 parts (1p2n1w) 253 | -10/Materials | Discovered new exit (range 14) 442 | -10/Materials | Core integrity fell below 50% 534 | -10/Materials | Discovered new exit (range 14) 616 | -10/Materials | Build established: Mutant 829 | -10/Materials | Entered another Materials area 829 | -9/Materials | Accompanied by 2 allies 829 | -9/Materials | Evolved 2 slots: Utility x2 980 | -9/Materials | Core integrity fell below 50% 990 | -9/Materials | Lost 5 parts (1n4w) 1095 | -9/Materials | Build established: Hauler-Mutant 1338 | -9/Materials | Discovered new exit (range 15) 1373 | -9/Materials | Core integrity fell below 20% 1580 | -9/Materials | Discovered new exit (range 8) 1581 | -9/Materials | Discovered new exit (range 14) 1581 | -9/Materials | Destroyed by Y-45 Defender with Heavy Assault Rifle Last Messages --------------- 01423_ Acquired Shotgun. 01428_ The unstable cave ceiling collapses. 01430_ Acquired Shotgun. 01449_ Acquired Arm. Wheel. 01454_ Triggered Blade Trap. 01454_ Massive razor-sharp blades shoot up from within the floor. 01454_ Grenade Launcher severed. 01463_ Acquired Grenade Launcher. 01487_ Electrolysis Chamber disabled. 01488_ Y-45 Defender destroyed. 01495_ Acquired 60 matter. 01498_ Acquired Lgt. Armor Plating. 01508_ A-02 Transporter destroyed. 01513_ Acquired Unknown Storage. 01514_ Identified Med. Storage Unit. 01515_ Dropped Med. Storage Unit. 01517_ Acquired Ion Engine. 01521_ Acquired 47 matter. 01543_ A-02 Transporter destroyed. 01580_ EXIT=FOUND Map ----- +----------------------------------------------------+ | #?????????????????????????????????????? | | #?????????????????????????????????????? | | #?????????????????????????????????????? | | # ??????????????????????????????????????? | | ????? ??????????????????????????????????????? | | ????????????????????????????????????????????? | | ????????????????#???????????????????????????? | | ??????????????? #???????????????????????????? | | ?????????????? #???????????????????????????? | | ????????????? ##??????????????????????????? | | ????######## #####??? ????????????????? | | ????# !!= ?g ???????????????? | | ????# !%! ? Y ???????????????? | | ##### !!! ?g ???????????????? | | # #### ####???? ???????????????? | | # #?########??????? #???????????????? | | """ # #? #??????? #???????????????? | | """ + # #??????# #???????????????? | | """ # # #??????+ #???????????????? | | + + #??????# #???????????????? | | ##+## # #??????# #???????????????? | | ?# # #??????# #???????????????? | | ?# #? #??????# #???????????????? | | ?# #?########??????# #???????????????? | | ?# ################# #???????????????? | | ?#!! + /@ +???????????????? | | ##=! ######## # #???????????????? | | = == #??????# !# #???????????????? | | ######+######??# """ # #???????????????? | | # ! [= #??# """"" # ??????????????? | | # !"" #?# """"" #